Cogmind - Beta 16 @@@ ROGUE MODE // 2025.12.02 @ 15:51:52 Player: Boris Result: Destroyed self with Subdweller Shrapnel Launcher Performance ------------- Evolutions (0) 0 Regions Visited (2) 400 Robots Destroyed (31) 155 Value Destroyed (697) 697 Prototype IDs (0) 0 Alien Tech Used (0) 0 Bonus (0) 0 TOTAL SCORE: 1252 Bonus ------- None Cogmind --------- Core Integrity 0/250 Matter 117/300 Energy 85/100 System Corruption 3% Temperature Cool (0) Movement Treading (480) Ox4 Location -10/Subcaves Parts ------- > --- POWER (1) -------- (None) > --- PROPULSION (2) --- Light Treads Subdweller Monowheel > --- UTILITY (2) ------ Huge Storage Unit Makeshift Light Armor Plating > --- WEAPON (2) ------- Subdweller Laser Subdweller Shrapnel Launcher > --- INVENTORY (25) --- Wheel Subdweller Monowheel High-capacity Storage Unit Subdweller Optics Seismic Detector Transport Network Coupler Cobbler Unit SUBCON Basin (Full) Peak State ------------ > --- POWER ------------ (None) > --- PROPULSION ------- Wheel Subdweller Monowheel > --- UTILITY ---------- Huge Storage Unit Makeshift Light Armor Plating > --- WEAPON ----------- Subdweller Laser Subdweller Machine Gun > --- INVENTORY -------- Light Treads Subdweller Monowheel High-capacity Storage Unit Subdweller Optics Seismic Detector Transport Network Coupler Cobbler Unit Subdweller Beam Cannon Subdweller Shrapnel Launcher SUBCON Basin [Rating: 31] Favorites ----------- Power Light Ion Engine Engine Light Ion Engine Propulsion Light Treads Treads Light Treads Wheel Wheel Utility Large Storage Unit Device Seismic Detector Storage Large Storage Unit Protection Makeshift Light Armor Plating Weapon Medium Laser Energy Gun Medium Laser Energy Cannon Subdweller Beam Cannon Ballistic Gun Subdweller Machine Gun Launcher Subdweller Shrapnel Launcher Build | -11 -10 -10 ------- Run | Yrd Mat Sub Slots Evolved . | . . . Power . | . . . Propulsion . | . . . Utility . | . . . Weapon . | . . . Parts Attached 25 | 5 5 15 Power 3 | 1 . 2 Engine 3 | 1 . 2 Core . | . . . Reactor . | . . . Propulsion 9 | 1 3 5 Treads 6 | 1 2 3 Leg . | . . . Wheel 3 | . 1 2 Hover . | . . . Flight . | . . . Utility 6 | 1 2 3 Device 2 | . 1 1 Storage 3 | 1 1 1 Processor . | . . . Hackware . | . . . Protection 1 | . . 1 Artifact . | . . . Weapon 7 | 2 . 5 Energy Gun 4 | 2 . 2 Energy Cannon 1 | . . 1 Ballistic Gun 1 | . . 1 Ballistic Cannon . | . . . Launcher 1 | . . 1 Special Weapon . | . . . Impact Weapon . | . . . Slashing Weapon . | . . . Piercing Weapon . | . . . Special Melee Weapon . | . . . Unidentified Prototypes . | . . . Parts Lost 5 | . . 5 Power 3 | . . 3 Propulsion . | . . . Utility . | . . . Weapon 2 | . . 2 Highest Loss Streak 2 | . . 2 To Critical Strikes . | . . . Average Backups 10 | 2 8 12 Power . | . 1 . Propulsion 3 | . 2 4 Utility 4 | . 2 5 Weapon 2 | . 1 3 Tool/Special . | . . . Unused Backups 10 | . 2 8 Power . | . . . Propulsion 2 | . 1 1 Utility 5 | . 1 4 Weapon 3 | . . 3 Tool/Special . | . . . Average Slot Usage (%) 93 | . 97 90 Engine 8 | . 14 5 Treads 23 | . 25 21 Wheel 4 | . . 6 Device 11 | . 13 11 Storage 14 | . 14 14 Protection 1 | . . 2 Energy Gun 19 | . 27 14 Ballistic Gun 8 | . . 12 Peak Build Rating 31 | 5 8 31 Average Rating 12 | 4 7 15 On Entrance 4 | . 5 8 Avg Prop Armor Cover (%) 13 | . 13 13 Naked Turns . | . . . Heaviest Build 96 | 12 32 96 Greatest Support 40 | 20 40 40 Greatest Overweight (x) 4 | 2 2 4 Average Overweight (x) . | . . . Largest Inventory Capacity 25 | 8 15 25 Average Capacity 16 | 7 14 17 Most Carried 25 | 5 14 25 Average Carried 13 | 2 8 16 Final Capacity 25 | 8 15 25 Final Carried 23 | 4 14 23 Class Distribution -------------------- 100% | Mutant Dominant Class ---------------- Mutant | -10/Materials Mutant | -10/Subcaves Resources | -11 -10 -10 ----------- Run | Yrd Mat Sub Matter Collected 692 | 199 121 372 Remotely . | . . . Salvage Created 952 | 116 525 311 Parts 57 | 9 32 16 Haulers Intercepted 2 | . 2 . Recyclers Shooed 1 | . 1 . Parts Field Recycled . | . . . Retrieved Matter . | . . . Parts Self-Destructed 20 | . . 20 Prevented . | . . . Parts Restored . | . . . Kills | -11 -10 -10 ------- Run | Yrd Mat Sub Combat Hostiles Destroyed 19 | . 9 10 Guns 15 | . 8 7 Cannons 1 | . . 1 AOE 2 | . . 2 Classes Destroyed 10 | 2 6 2 Worker 3 | . 3 . Tunneler 3 | 2 1 . Hauler 2 | . 2 . Recycler 1 | 1 . . Mechanic 1 | . 1 . Watcher 2 | . 2 . Swarmer 5 | . 3 2 Grunt 6 | . 6 . Sentry 1 | . . 1 Subdweller 7 | . . 7 Best Kill Streak 4 | 2 4 2 Combat Bots Only 3 | . 3 2 Max Kills in Single Turn 2 | 1 2 1 Gunslinging 1 | . 1 . Exploded 1 | . . 1 Melee . | . . . Uniques/NPCs Destroyed . | . . . Combat | -11 -10 -10 -------- Run | Yrd Mat Sub Hostile Shots Fired 87 | . 41 46 Missed 16 | . 9 7 Hits 71 | . 32 39 Projectile 71 | . 32 39 AOE 1 | . . 1 Critical Strikes 2 | . . 2 Damage Taken 1349 | . 378 971 Core 264 | . 60 204 Absorbed by Shields . | . . . Regen/Repaired (Parts) 239 | . 239 . Core Remaining (%) 100 | 100 . . Volleys Fired 96 | 4 46 46 Largest 2 | 2 2 2 Hottest 140 | 100 100 140 Shots Fired 164 | 8 92 64 Gun 155 | 8 92 55 Cannon 4 | . . 4 Launcher 5 | . . 5 Special . | . . . Kinetic 24 | . . 24 Thermal 140 | 8 92 40 Explosive . | . . . Electromagnetic . | . . . Robot Hit Streak 29 | 3 13 29 Robot Miss Streak 2 | 1 2 2 Penetration Max . | . . . Secondary Targets 3 | . 2 1 Max Gunslinging Chain 1 | . 1 1 Shots Hit Robots 115 | 6 68 41 Core Hits 50 | 4 28 18 Critical Kills 1 | . . 1 Critical Parts Destroyed . | . . . Critical Strikes 9 | . 6 3 Burn 7 | . 6 1 Destroy 2 | . . 2 Melee Attacks . | . . . Impact . | . . . Slashing . | . . . Piercing . | . . . Sneak Attacks . | . . . Combat Hostiles . | . . . Follow-up Attacks . | . . . Damage Inflicted 1924 | 75 954 895 Guns 1619 | 75 926 618 Cannons 112 | . . 112 Explosions 165 | . . 165 Melee . | . . . Ramming 28 | . 28 . Kinetic 398 | . . 398 Thermal 1498 | 75 926 497 Explosive . | . . . Electromagnetic . | . . . Impact . | . . . Slashing . | . . . Piercing . | . . . Highest Corruption 3 | . 3 3 Average Corruption 2 | . 2 3 Corruption Purged . | . . . Corruption Blocked . | . . . Effects 41 | . 5 36 Message Errors 8 | . 1 7 Matter Fused 17 | . 1 16 Heat Flow Errors 3 | . 3 . Energy Discharges 3 | . . 3 Parts Fused 1 | . . 1 Data Loss (minor) 3 | . . 3 Data Loss (major) 3 | . . 3 Misfires 1 | . . 1 Weapon Failures 2 | . . 2 Overload Shots . | . . . Overflow Damage . | . . . Projectiles . | . . . Explosions . | . . . Melee . | . . . Knockbacks . | . . . Impact . | . . . Kinetic . | . . . Secondary . | . . . Self-Inflicted Damage 97 | . . 97 Shots 3 | . . 3 Rammed 4 | . 4 . Targets Rammed 4 | . 4 . Kicked . | . . . Crushed . | . . . Highest Temperature 523 | 78 357 523 Average Temperature 121 | 41 101 256 Received Heat Transfer 941 | . 183 758 Effects 4 | . 2 2 Shutdowns 1 | . 1 . Energy Bleed 2 | . 1 1 Damage (minor) 1 | . . 1 Siege Activations . | . . . Martial Activations . | . . . Shielding Activations . | . . . Robots Disrupted . | . . . Combat Hostiles . | . . . Robots Corrupted . | . . . Combat Hostiles . | . . . Parts Fried . | . . . Impact Corruptions . | . . . Robots Melted 1 | . 1 . Combat Hostiles 1 | . 1 . Parts Melted 8 | . 6 2 Heat Transferred 4393 | 222 3108 1063 Parts Sabotaged . | . . . Parts Stolen . | . . . Parts Stripped . | . . . Power Chain Reactions . | . . . Alert | -11 -10 -10 ------- Run | Yrd Mat Sub Maximum Alert Level . | . . . Low Security (%) 100 | 100 100 . Level 1 . | . . . Level 2 . | . . . Level 3 . | . . . Level 4 . | . . . Level 5 . | . . . High Security . | . . . Max Security . | . . . Peak Influence 118 | 10 118 . Initial . | . . . Average 43 | 1 46 . Influence Increases 467 | 15 347 105 Destroy 0b10 Robot/C 240 | . 180 60 Destroy 0b10 Robot/NC 60 | 15 45 . Destroy Leader 48 | . 48 . Successful Hack 74 | . 74 . Lose Combat Pursuer 45 | . . 45 Influence Decreases 394 | 15 316 63 Entered New Map 15 | . . 15 Time Decay 369 | 15 316 38 Lost Part 10 | . . 10 Squads Dispatched . | . . . Investigation . | . . . Extermination . | . . . Reinforcement . | . . . Assault . | . . . Garrison . | . . . Intercept . | . . . Searches Triggered . | . . . Construction Impeded . | . . . Haulers Reinforced . | . . . Active Scanning Responses . | . . . Cargo Convoy Interrupts . | . . . Stealth | -11 -10 -10 --------- Run | Yrd Mat Sub Distress Signals . | . . . Communications Jammed . | . . . Distress Signals . | . . . Times Spotted 32 | . 16 16 Peak Tracking Total 5 | . 3 5 Tactical Retreats 2 | . . 2 Traps | -11 -10 -10 ------- Run | Yrd Mat Sub Traps Triggered 1 | . 1 . Indirectly . | . . . Trap Hack Attempts . | . . . Triggered . | . . . Disarmed . | . . . Reprogrammed . | . . . Reused . | . . . Traps Extracted . | . . . Installed . | . . . Triggered . | . . . Machines | -11 -10 -10 ---------- Run | Yrd Mat Sub Machines Disabled . | . . . Max in Single Turn . | . . . Machines Repaired . | . . . Machines Dismantled . | . . . Machines Sabotaged . | . . . Overloaded Fab Kills . | . . . Hacking | -11 -10 -10 --------- Run | Yrd Mat Sub Machines Accessed 13 | . 11 2 Terminals 8 | . 8 . Fabricators . | . . . Repair Stations 1 | . 1 . Recycling Units 2 | . 2 . Scanalyzers . | . . . Garrison Access . | . . . Total Hacks 42 | . 39 3 Successful 26 | . 23 3 Failed 16 | . 16 . Catastrophic 1 | . 1 . Database Lockouts . | . . . Manual 27 | . 27 . Terminals 30 | . 30 . Fabricators . | . . . Repair Stations 7 | . 7 . Recycling Units 2 | . 2 . Scanalyzers . | . . . Garrison Access . | . . . Terminal Hacks 9 | . 6 3 Record 1 | . . 1 Part Schematic 1 | . 1 . Robot Analysis 3 | . 3 . Open Door 1 | . . 1 Locate Traps 1 | . 1 . Zone Layout 1 | . 1 . Release Object 1 | . . 1 Fabricator Hacks . | . . . Repair Station Hacks 6 | . 6 . Scan Component 3 | . 3 . Repair 3 | . 3 . Recycling Unit Hacks 2 | . 2 . Retrieve Components 2 | . 2 . Scanalyzer . | . . . Garrison Access Hacks . | . . . Unauthorized Hacks 9 | . 9 . Terminals 9 | . 9 . Botnet 3 | . 3 . Operators 1 | . 1 . Skim 5 | . 5 . Fabricators . | . . . Repair Stations . | . . . Recycling Units . | . . . Scanalyzers . | . . . Garrison Access . | . . . Data Cores Recovered . | . . . Used . | . . . Hacking Detections 10 | . 10 . Full Trace Events 1 | . 1 . Feedback Events 1 | . 1 . Corruption 1 | . 1 . Feedback Blocked . | . . . Robot Schematics Acquired . | . . . Robots Built . | . . . Authchips . | . . . Time . | . . . Total Robot Build Rating . | . . . Part Schematics Acquired 1 | . 1 . Parts Built . | . . . Authchips . | . . . Time . | . . . Total Part Build Rating . | . . . Part Studies Acquired . | . . . Parts Repaired 3 | . 3 . Time 78 | . 78 . Parts Recycled . | . . . Recycled Matter . | . . . Retrieved Matter . | . . . Retrieved Components 4 | . 4 . Parts Scanalyzed . | . . . Part Schematics Acquired . | . . . Parts Damaged . | . . . Bothacking | -11 -10 -10 ------------ Run | Yrd Mat Sub Used RIF Installer . | . . . Robots Hacked . | . . . Non-combat . | . . . Combat . | . . . Robot Hacks Applied . | . . . Relay Couplers Released . | . . . Fabnet Peak Effective % . | . . . Robots Rewired . | . . . Allies Hacked . | . . . Hacks Repelled . | . . . Allies | -11 -10 -10 -------- Run | Yrd Mat Sub Total Allies . | . . . Largest Group . | . . . Highest-Rated Group . | . . . Highest-Rated Ally . | . . . Total Orders . | . . . Ally Attacks . | . . . Total Damage . | . . . Kills . | . . . Allies Corrupted . | . . . Allies Melted . | . . . Intel | -11 -10 -10 ------- Run | Yrd Mat Sub Active Infowar (turns) 2741 | . 1115 1626 Seismic 2741 | . 1115 1626 Robot Analysis Total 3 | . 3 . Derelict Logs Recovered . | . . . Drone Launches . | . . . Drone Recoveries . | . . . Exploration | -11 -10 -10 ------------- Run | Yrd Mat Sub Turns Passed 3286 | 85 1155 2046 Spaces Moved 1846 | 46 554 1246 Core 16 | 16 . . Treads 1444 | 30 522 892 Legs . | . . . Wheels 386 | . 32 354 Hover . | . . . Flight . | . . . Fastest Speed 50 | 50 110 110 Average Speed 151 | 132 158 148 Slowest Speed 240 | 160 240 240 Overloaded Moves . | . . . Propulsion Burnouts . | . . . Robots Hopped . | . . . Potential Cave-ins . | . . . Cave-ins Triggered . | . . . Exploration Rate (%) 52 | 5 96 56 Regions Visited 2 Branch Regions 1 Pre-discovered Areas 2 | . 2 . Known Exits Taken 1 | . 1 . Unknown Exits Taken 1 | 1 . . Scrap Searched 3 | . . 3 Spaces Dug 13 | . . 13 Terrain Destroyed 43 | . . 43 Melee . | . . . Projectile . | . . . AOE 43 | . . 43 Terrain Rammed . | . . . Walls Destroyed . | . . . Machines Disabled . | . . . Actions | -11 -10 -10 --------- Run | Yrd Mat Sub Total 2167 | 60 733 1374 Wait 134 | . 105 29 Move 1844 | 45 553 1246 Hop . | . . . Pick Up 26 | 5 14 7 Fast Attach 14 | 5 4 5 Attach 10 | . 3 7 Detach 3 | . 1 2 Swap 19 | . . 19 Drop 17 | 1 3 13 Fire 96 | 4 46 46 Melee . | . . . Ram . | . . . Kick . | . . . Crush 4 | . 4 . Escape Stasis . | . . . Rewire . | . . . Trap . | . . . Miscellaneous . | . . . Route ------- -11/Scrapyard -10/Materials (discovered 6 exits: *Mat x3 / *Min x2 / *Sub) -10/Subcaves (discovered 2 exits: Mat / Rec) History --------- Turn | Location | Event 27 | -11/Scrapyard | Discovered new exit (range 15) 86 | -11/Scrapyard | Entered Materials 249 | -10/Materials | Discovered new exit (range 16) 318 | -10/Materials | Build established: Mutant 445 | -10/Materials | Discovered new exit (range 12) 606 | -10/Materials | Identified exit to Subcaves 606 | -10/Materials | Identified exit to Mines 606 | -10/Materials | Identified exit to Materials 634 | -10/Materials | Learned location of 2 exits from Subcaves 659 | -10/Materials | Learned location of Mines (-9) 661 | -10/Materials | Learned Materials emergency access door positions 662 | -10/Materials | Learned location of Subcaves (-10) 670 | -10/Materials | Learned Storage security intel 1021 | -10/Materials | Repaired Lgt. Treads 1049 | -10/Materials | Repaired Lgt. Treads 1076 | -10/Materials | Repaired Med. Laser 1241 | -10/Materials | Entered Subcaves 1242 | -10/Subcaves | Approached by a straggling Scientist 1242 | -10/Subcaves | Identified exit to Recycling 1242 | -10/Subcaves | Identified exit to Materials 1352 | -10/Subcaves | Shifting Twisted Machinery released Mak. Light Armor Plating 1353 | -10/Subcaves | Shifting Twisted Machinery released Sub. Laser 1530 | -10/Subcaves | A swath of the cavern ceiling suddenly collapsed 2425 | -10/Subcaves | Core integrity fell below 50% 2707 | -10/Subcaves | A swath of the cavern ceiling suddenly collapsed 2853 | -10/Subcaves | Found SUBCON Basin 2999 | -10/Subcaves | Core integrity fell below 20% 3287 | -10/Subcaves | Destroyed self with Subdweller Shrapnel Launcher Last Messages --------------- 02913_ P6BSL 1,F9FRBBIKUW%IA NUFQG&OC R 02922_ Acquired 13 matter. 03024_ System corrupted: Matter fused (-8). 03039_ System corrupted: Matter fused (-9). 03043_ Acquired 16 matter. 03139_ G> 03276_ Subatomizers dissect the Sub. Optics. 03280_ Acquired 13 matter. 03285_ Sub. Machine Gun destroyed. Map ----- +----------------------------------------------------+ | ????????????????????????????????????????????? ??? | | ?????????????????????????????????????????????? " ? | | ??????????????????????????????????????????????? "? | | ???????????????????????????????????????????????? " | | ????????????????????????????????????????????????? | | ?????????????????????????????????????????????????# | | ?????????####????????????????????????????#???????# | | ????????## #???????????????????????????#" ???## | | ????????# #??????????????????????????# ## | | ???????## ##??????????????????????" " | | ???????# #????????######?????????"" | | ????????# ##????### # #?????????????# | | ?????????# ###### ???????????????# # | | ????????## ## ?????????????????# ???? | | ???????## #????????????????????????? | | ??????## #????????????????????????? | | ??????# "###??????????????????????? | | ???????# " #?" ##?????????????????? | | ????????# #? " ??????????????????? | | ????????## " #?"&#????? "?????????? | | ?????????# "###"!#### "?????????? | | ????????## ###""!&&= ???????????? | | ?????#### % ####"%&%&&= ???>????????? | | ????## ## ####"&""""% ??????????????? | | ????# ### ####%# s#&"""#### ??????????????? | | ???## ### ##?## " @"" ##??????????????????? | | ??## ### #### "" ""##???????????????????? | | ??# ## " ##"#????????????????????? | | ??# """"###???????############?? | | ??# "#????????## # ### | | ??## ##????????# " # | | ???# ### # ##?????????# # | | ???# ##### #??????????## & # | | ???## ""##?# #####????????### | | ????## " "#### " ##?????????# # | | ?????## # """ """"""##????????# # | | ????###### ## # ## """""" #????????#" ## | | ??### ### ## ##### """"" #?#####??## # | | ??# ### #####?# """"""" ### # #####"" | | ??# ## ##????# """""""### ## | | ??# ##???#""# """" "" # ### | | ??## ##??#" ###"""## ## ### | | ???# ##### ## "#"########## ### ## | | ???# ### "# ## #"##"###??????# # ##?### | | ???# #### " ##"###"#####???######????## | | ???#### ## ### ## #"""# #??????????????## | | ??????## #####?#### ######"# #???????????????# | | ???????## ###??????##??####"###???????????????# | | ????????## #??????????#""#"""##??????????????# | | ?????????## #????????### #"##"##??????????????## | +----------------------------------------------------+ Best States ------------- Heat Dissipation 25 Energy Generation 15 Energy Capacity 200 Matter Stores 300 Matter Capacity 300 Sight Range 16 Terrain Scan Density 10 Armor Coverage 100 Evasion (%) 40 Recoil Reduction 2 Item Schematics ----------------- Hcp. Storage Unit | -10/Materials | Hacked Robot Schematics ------------------ None Fabricated ------------ Nothing Repaired ---------- Lgt. Treads | 32% | -10/Materials Lgt. Treads | 35% | -10/Materials Med. Laser | 24% | -10/Materials Studied --------- None Alien Tech Used ----------------- None Achievements -------------- None Challenges ------------ None Game ------ Seed NetworkedCoilProtomatter Manual? 0 Play Time 00:23:20 Cumulative 671.6 hours Start 2025.12.02 @ 15:29:34 End 2025.12.02 @ 15:51:52 Sessions 1 Manual Loads 0 Difficulty Rogue Special Mode None Game No. 224 Rogue 208 Adventurer 15 Explorer 1 Win Type - Total 39 Types 10/3/10/2/2/0/6/3/1/2 Lore% 94 Gallery% 89 Achievement% 66 Wizard Run 0 Options --------- Layout 0 ASCII 0 Keyboard 0 Movement Numpad Keybinds 0 Fullscreen 1 Font 18/SmallcapsGlow Map View 76x50 Zoom Use 0% Tactical HUD 1 Map Filters NONE Filters NONE Steam 1 RUN: 2b167055-689d-40c5-b7de-c35749a591f8